Workbook

Sheet Lycées
A1: Challenge Lycée | H1: CHAMPIONNAT LASEL GYM OPEN
A2: Lycée | B2: Nbr élèves | C2: JG | D2: JF | E2: Champions | F2: Points JG | G2: RANG JG | H2: Points JF | I2: RANG JF
A3: LTMAL | B3: =IF(Lycées!$A3="","",SUM(Lycées!$C3,Lycées!$D3)) -> 2 | C3: =IF(COUNTIF(JG!$D$4:$D$178,Lycées!$A3)=0,"",COUNTIF(JG!$D$4:$D$178,Lycées!$A3)) -> 1 | D3: =IF(COUNTIF(JF!$D$4:$D$647,Lycées!A3)=0,"",COUNTIF(JF!$D$4:$D$647,Lycées!A3)) -> 1 | E3: =IF(Lycées!$A3="","",((COUNTIFS(JG!$D$4:$D$178,Lycées!$A3,JG!$L$4:$L$178,"1")+COUNTIFS(JF!$D$4:$D$647,Lycées!$A3,JF!$L$4:$L$647,"1")))) -> 1 | F3: =IF((B3=""),"",SUMIFS(JG!$N$4:$N$178,JG!$D$4:$D$178,Lycées!$A3)) -> 2 | G3: =IF(Lycées!$F3="","",RANK(Lycées!$F$3:$F$30,Lycées!$F$3:$F$30,0)) -> 8 | H3: =IF(B3="","",SUMIFS(JF!$N$4:$N$647,JF!$D$4:$D$647,Lycées!$A3)) -> 3 | I3: =IF(Lycées!$D3="","",RANK(Lycées!$H$3:$H$30,Lycées!$H$3:$H$30,0)) -> 6 | K3: Hei gi just d'Lycéeën agedroen. De Rescht fëllt sech vum selwen
A4: ALR | B4: =IF(Lycées!$A4="","",SUM(Lycées!$C4,Lycées!$D4)) -> 9 | C4: =IF(COUNTIF(JG!$D$4:$D$178,Lycées!$A4)=0,"",COUNTIF(JG!$D$4:$D$178,Lycées!$A4)) -> 1 | D4: =IF(COUNTIF(JF!$D$4:$D$647,Lycées!A4)=0,"",COUNTIF(JF!$D$4:$D$647,Lycées!A4)) -> 8 | E4: =IF(Lycées!$A4="","",((COUNTIFS(JG!$D$4:$D$178,Lycées!$A4,JG!$L$4:$L$178,"1")+COUNTIFS(JF!$D$4:$D$647,Lycées!$A4,JF!$L$4:$L$647,"1")))) -> 4 | F4: =IF((B4=""),"",SUMIFS(JG!$N$4:$N$178,JG!$D$4:$D$178,Lycées!$A4)) -> 3 | G4: =IF(Lycées!$F4="","",RANK(Lycées!$F$3:$F$30,Lycées!$F$3:$F$30,0)) -> 4 | H4: =IF(B4="","",SUMIFS(JF!$N$4:$N$647,JF!$D$4:$D$647,Lycées!$A4)) -> 11 | I4: =IF(Lycées!$D4="","",RANK(Lycées!$H$3:$H$30,Lycées!$H$3:$H$30,0)) -> 1
A5: LGE | B5: =IF(Lycées!$A5="","",SUM(Lycées!$C5,Lycées!$D5)) -> 6 | C5: =IF(COUNTIF(JG!$D$4:$D$178,Lycées!$A5)=0,"",COUNTIF(JG!$D$4:$D$178,Lycées!$A5)) ->  | D5: =IF(COUNTIF(JF!$D$4:$D$647,Lycées!A5)=0,"",COUNTIF(JF!$D$4:$D$647,Lycées!A5)) -> 6 | E5: =IF(Lycées!$A5="","",((COUNTIFS(JG!$D$4:$D$178,Lycées!$A5,JG!$L$4:$L$178,"1")+COUNTIFS(JF!$D$4:$D$647,Lycées!$A5,JF!$L$4:$L$647,"1")))) -> 0 | F5: =IF((B5=""),"",SUMIFS(JG!$N$4:$N$178,JG!$D$4:$D$178,Lycées!$A5)) -> 0 | G5: =IF(Lycées!$F5="","",RANK(Lycées!$F$3:$F$30,Lycées!$F$3:$F$30,0)) -> 9 | H5: =IF(B5="","",SUMIFS(JF!$N$4:$N$647,JF!$D$4:$D$647,Lycées!$A5)) -> 0 | I5: =IF(Lycées!$D5="","",RANK(Lycées!$H$3:$H$30,Lycées!$H$3:$H$30,0)) -> 10
A6: LHCE | B6: =IF(Lycées!$A6="","",SUM(Lycées!$C6,Lycées!$D6)) -> 9 | C6: =IF(COUNTIF(JG!$D$4:$D$178,Lycées!$A6)=0,"",COUNTIF(JG!$D$4:$D$178,Lycées!$A6)) -> 3 | D6: =IF(COUNTIF(JF!$D$4:$D$647,Lycées!A6)=0,"",COUNTIF(JF!$D$4:$D$647,Lycées!A6)) -> 6 | E6: =IF(Lycées!$A6="","",((COUNTIFS(JG!$D$4:$D$178,Lycées!$A6,JG!$L$4:$L$178,"1")+COUNTIFS(JF!$D$4:$D$647,Lycées!$A6,JF!$L$4:$L$647,"1")))) -> 3 | F6: =IF((B6=""),"",SUMIFS(JG!$N$4:$N$178,JG!$D$4:$D$178,Lycées!$A6)) -> 7 | G6: =IF(Lycées!$F6="","",RANK(Lycées!$F$3:$F$30,Lycées!$F$3:$F$30,0)) -> 1 | H6: =IF(B6="","",SUMIFS(JF!$N$4:$N$647,JF!$D$4:$D$647,Lycées!$A6)) -> 8 | I6: =IF(Lycées!$D6="","",RANK(Lycées!$H$3:$H$30,Lycées!$H$3:$H$30,0)) -> 2
A7: EPFL | B7: =IF(Lycées!$A7="","",SUM(Lycées!$C7,Lycées!$D7)) -> 0 | C7: =IF(COUNTIF(JG!$D$4:$D$178,Lycées!$A7)=0,"",COUNTIF(JG!$D$4:$D$178,Lycées!$A7)) ->  | D7: =IF(COUNTIF(JF!$D$4:$D$647,Lycées!A7)=0,"",COUNTIF(JF!$D$4:$D$647,Lycées!A7)) ->  | E7: =IF(Lycées!$A7="","",((COUNTIFS(JG!$D$4:$D$178,Lycées!$A7,JG!$L$4:$L$178,"1")+COUNTIFS(JF!$D$4:$D$647,Lycées!$A7,JF!$L$4:$L$647,"1")))) -> 0 | F7: =IF((B7=""),"",SUMIFS(JG!$N$4:$N$178,JG!$D$4:$D$178,Lycées!$A7)) -> 0 | G7: =IF(Lycées!$F7="","",RANK(Lycées!$F$3:$F$30,Lycées!$F$3:$F$30,0)) -> 9 | H7: =IF(B7="","",SUMIFS(JF!$N$4:$N$647,JF!$D$4:$D$647,Lycées!$A7)) -> 0 | I7: =IF(Lycées!$D7="","",RANK(Lycées!$H$3:$H$30,Lycées!$H$3:$H$30,0)) -> 
A8: LAML | B8: =IF(Lycées!$A8="","",SUM(Lycées!$C8,Lycées!$D8)) -> 9 | C8: =IF(COUNTIF(JG!$D$4:$D$178,Lycées!$A8)=0,"",COUNTIF(JG!$D$4:$D$178,Lycées!$A8)) -> 3 | D8: =IF(COUNTIF(JF!$D$4:$D$647,Lycées!A8)=0,"",COUNTIF(JF!$D$4:$D$647,Lycées!A8)) -> 6 | E8: =IF(Lycées!$A8="","",((COUNTIFS(JG!$D$4:$D$178,Lycées!$A8,JG!$L$4:$L$178,"1")+COUNTIFS(JF!$D$4:$D$647,Lycées!$A8,JF!$L$4:$L$647,"1")))) -> 0 | F8: =IF((B8=""),"",SUMIFS(JG!$N$4:$N$178,JG!$D$4:$D$178,Lycées!$A8)) -> 3 | G8: =IF(Lycées!$F8="","",RANK(Lycées!$F$3:$F$30,Lycées!$F$3:$F$30,0)) -> 4 | H8: =IF(B8="","",SUMIFS(JF!$N$4:$N$647,JF!$D$4:$D$647,Lycées!$A8)) -> 0 | I8: =IF(Lycées!$D8="","",RANK(Lycées!$H$3:$H$30,Lycées!$H$3:$H$30,0)) -> 10
A9: LTL | B9: =IF(Lycées!$A9="","",SUM(Lycées!$C9,Lycées!$D9)) -> 8 | C9: =IF(COUNTIF(JG!$D$4:$D$178,Lycées!$A9)=0,"",COUNTIF(JG!$D$4:$D$178,Lycées!$A9)) -> 3 | D9: =IF(COUNTIF(JF!$D$4:$D$647,Lycées!A9)=0,"",COUNTIF(JF!$D$4:$D$647,Lycées!A9)) -> 5 | E9: =IF(Lycées!$A9="","",((COUNTIFS(JG!$D$4:$D$178,Lycées!$A9,JG!$L$4:$L$178,"1")+COUNTIFS(JF!$D$4:$D$647,Lycées!$A9,JF!$L$4:$L$647,"1")))) -> 3 | F9: =IF((B9=""),"",SUMIFS(JG!$N$4:$N$178,JG!$D$4:$D$178,Lycées!$A9)) -> 5 | G9: =IF(Lycées!$F9="","",RANK(Lycées!$F$3:$F$30,Lycées!$F$3:$F$30,0)) -> 2 | H9: =IF(B9="","",SUMIFS(JF!$N$4:$N$647,JF!$D$4:$D$647,Lycées!$A9)) -> 8 | I9: =IF(Lycées!$D9="","",RANK(Lycées!$H$3:$H$30,Lycées!$H$3:$H$30,0)) -> 2
A10: LGL | B10: =IF(Lycées!$A10="","",SUM(Lycées!$C10,Lycées!$D10)) -> 8 | C10: =IF(COUNTIF(JG!$D$4:$D$178,Lycées!$A10)=0,"",COUNTIF(JG!$D$4:$D$178,Lycées!$A10)) ->  | D10: =IF(COUNTIF(JF!$D$4:$D$647,Lycées!A10)=0,"",COUNTIF(JF!$D$4:$D$647,Lycées!A10)) -> 8 | E10: =IF(Lycées!$A10="","",((COUNTIFS(JG!$D$4:$D$178,Lycées!$A10,JG!$L$4:$L$178,"1")+COUNTIFS(JF!$D$4:$D$647,Lycées!$A10,JF!$L$4:$L$647,"1")))) -> 0 | F10: =IF((B10=""),"",SUMIFS(JG!$N$4:$N$178,JG!$D$4:$D$178,Lycées!$A10)) -> 0 | G10: =IF(Lycées!$F10="","",RANK(Lycées!$F$3:$F$30,Lycées!$F$3:$F$30,0)) -> 9 | H10: =IF(B10="","",SUMIFS(JF!$N$4:$N$647,JF!$D$4:$D$647,Lycées!$A10)) -> 1 | I10: =IF(Lycées!$D10="","",RANK(Lycées!$H$3:$H$30,Lycées!$H$3:$H$30,0)) -> 7
A11: LTB | B11: =IF(Lycées!$A11="","",SUM(Lycées!$C11,Lycées!$D11)) -> 0 | C11: =IF(COUNTIF(JG!$D$4:$D$178,Lycées!$A11)=0,"",COUNTIF(JG!$D$4:$D$178,Lycées!$A11)) ->  | D11: =IF(COUNTIF(JF!$D$4:$D$647,Lycées!A11)=0,"",COUNTIF(JF!$D$4:$D$647,Lycées!A11)) ->  | E11: =IF(Lycées!$A11="","",((COUNTIFS(JG!$D$4:$D$178,Lycées!$A11,JG!$L$4:$L$178,"1")+COUNTIFS(JF!$D$4:$D$647,Lycées!$A11,JF!$L$4:$L$647,"1")))) -> 0 | F11: =IF((B11=""),"",SUMIFS(JG!$N$4:$N$178,JG!$D$4:$D$178,Lycées!$A11)) -> 0 | G11: =IF(Lycées!$F11="","",RANK(Lycées!$F$3:$F$30,Lycées!$F$3:$F$30,0)) -> 9 | H11: =IF(B11="","",SUMIFS(JF!$N$4:$N$647,JF!$D$4:$D$647,Lycées!$A11)) -> 0 | I11: =IF(Lycées!$D11="","",RANK(Lycées!$H$3:$H$30,Lycées!$H$3:$H$30,0)) -> 
A12: LTAM | B12: =IF(Lycées!$A12="","",SUM(Lycées!$C12,Lycées!$D12)) -> 0 | C12: =IF(COUNTIF(JG!$D$4:$D$178,Lycées!$A12)=0,"",COUNTIF(JG!$D$4:$D$178,Lycées!$A12)) ->  | D12: =IF(COUNTIF(JF!$D$4:$D$647,Lycées!A12)=0,"",COUNTIF(JF!$D$4:$D$647,Lycées!A12)) ->  | E12: =IF(Lycées!$A12="","",((COUNTIFS(JG!$D$4:$D$178,Lycées!$A12,JG!$L$4:$L$178,"1")+COUNTIFS(JF!$D$4:$D$647,Lycées!$A12,JF!$L$4:$L$647,"1")))) -> 0 | F12: =IF((B12=""),"",SUMIFS(JG!$N$4:$N$178,JG!$D$4:$D$178,Lycées!$A12)) -> 0 | G12: =IF(Lycées!$F12="","",RANK(Lycées!$F$3:$F$30,Lycées!$F$3:$F$30,0)) -> 9 | H12: =IF(B12="","",SUMIFS(JF!$N$4:$N$647,JF!$D$4:$D$647,Lycées!$A12)) -> 0 | I12: =IF(Lycées!$D12="","",RANK(Lycées!$H$3:$H$30,Lycées!$H$3:$H$30,0)) -> 
A13: LCE | B13: =IF(Lycées!$A13="","",SUM(Lycées!$C13,Lycées!$D13)) -> 0 | C13: =IF(COUNTIF(JG!$D$4:$D$178,Lycées!$A13)=0,"",COUNTIF(JG!$D$4:$D$178,Lycées!$A13)) ->  | D13: =IF(COUNTIF(JF!$D$4:$D$647,Lycées!A13)=0,"",COUNTIF(JF!$D$4:$D$647,Lycées!A13)) ->  | E13: =IF(Lycées!$A13="","",((COUNTIFS(JG!$D$4:$D$178,Lycées!$A13,JG!$L$4:$L$178,"1")+COUNTIFS(JF!$D$4:$D$647,Lycées!$A13,JF!$L$4:$L$647,"1")))) -> 0 | F13: =IF((B13=""),"",SUMIFS(JG!$N$4:$N$178,JG!$D$4:$D$178,Lycées!$A13)) -> 0 | G13: =IF(Lycées!$F13="","",RANK(Lycées!$F$3:$F$30,Lycées!$F$3:$F$30,0)) -> 9 | H13: =IF(B13="","",SUMIFS(JF!$N$4:$N$647,JF!$D$4:$D$647,Lycées!$A13)) -> 0 | I13: =IF(Lycées!$D13="","",RANK(Lycées!$H$3:$H$30,Lycées!$H$3:$H$30,0)) -> 
A14: LTC | B14: =IF(Lycées!$A14="","",SUM(Lycées!$C14,Lycées!$D14)) -> 0 | C14: =IF(COUNTIF(JG!$D$4:$D$178,Lycées!$A14)=0,"",COUNTIF(JG!$D$4:$D$178,Lycées!$A14)) ->  | D14: =IF(COUNTIF(JF!$D$4:$D$647,Lycées!A14)=0,"",COUNTIF(JF!$D$4:$D$647,Lycées!A14)) ->  | E14: =IF(Lycées!$A14="","",((COUNTIFS(JG!$D$4:$D$178,Lycées!$A14,JG!$L$4:$L$178,"1")+COUNTIFS(JF!$D$4:$D$647,Lycées!$A14,JF!$L$4:$L$647,"1")))) -> 0 | F14: =IF((B14=""),"",SUMIFS(JG!$N$4:$N$178,JG!$D$4:$D$178,Lycées!$A14)) -> 0 | G14: =IF(Lycées!$F14="","",RANK(Lycées!$F$3:$F$30,Lycées!$F$3:$F$30,0)) -> 9 | H14: =IF(B14="","",SUMIFS(JF!$N$4:$N$647,JF!$D$4:$D$647,Lycées!$A14)) -> 0 | I14: =IF(Lycées!$D14="","",RANK(Lycées!$H$3:$H$30,Lycées!$H$3:$H$30,0)) -> 
A15: LTE | B15: =IF(Lycées!$A15="","",SUM(Lycées!$C15,Lycées!$D15)) -> 0 | C15: =IF(COUNTIF(JG!$D$4:$D$178,Lycées!$A15)=0,"",COUNTIF(JG!$D$4:$D$178,Lycées!$A15)) ->  | D15: =IF(COUNTIF(JF!$D$4:$D$647,Lycées!A15)=0,"",COUNTIF(JF!$D$4:$D$647,Lycées!A15)) ->  | E15: =IF(Lycées!$A15="","",((COUNTIFS(JG!$D$4:$D$178,Lycées!$A15,JG!$L$4:$L$178,"1")+COUNTIFS(JF!$D$4:$D$647,Lycées!$A15,JF!$L$4:$L$647,"1")))) -> 0 | F15: =IF((B15=""),"",SUMIFS(JG!$N$4:$N$178,JG!$D$4:$D$178,Lycées!$A15)) -> 0 | G15: =IF(Lycées!$F15="","",RANK(Lycées!$F$3:$F$30,Lycées!$F$3:$F$30,0)) -> 9 | H15: =IF(B15="","",SUMIFS(JF!$N$4:$N$647,JF!$D$4:$D$647,Lycées!$A15)) -> 0 | I15: =IF(Lycées!$D15="","",RANK(Lycées!$H$3:$H$30,Lycées!$H$3:$H$30,0)) -> 
A16: LJBM | B16: =IF(Lycées!$A16="","",SUM(Lycées!$C16,Lycées!$D16)) -> 2 | C16: =IF(COUNTIF(JG!$D$4:$D$178,Lycées!$A16)=0,"",COUNTIF(JG!$D$4:$D$178,Lycées!$A16)) ->  | D16: =IF(COUNTIF(JF!$D$4:$D$647,Lycées!A16)=0,"",COUNTIF(JF!$D$4:$D$647,Lycées!A16)) -> 2 | E16: =IF(Lycées!$A16="","",((COUNTIFS(JG!$D$4:$D$178,Lycées!$A16,JG!$L$4:$L$178,"1")+COUNTIFS(JF!$D$4:$D$647,Lycées!$A16,JF!$L$4:$L$647,"1")))) -> 0 | F16: =IF((B16=""),"",SUMIFS(JG!$N$4:$N$178,JG!$D$4:$D$178,Lycées!$A16)) -> 0 | G16: =IF(Lycées!$F16="","",RANK(Lycées!$F$3:$F$30,Lycées!$F$3:$F$30,0)) -> 9 | H16: =IF(B16="","",SUMIFS(JF!$N$4:$N$647,JF!$D$4:$D$647,Lycées!$A16)) -> 1 | I16: =IF(Lycées!$D16="","",RANK(Lycées!$H$3:$H$30,Lycées!$H$3:$H$30,0)) -> 7
A17: LNB | B17: =IF(Lycées!$A17="","",SUM(Lycées!$C17,Lycées!$D17)) -> 6 | C17: =IF(COUNTIF(JG!$D$4:$D$178,Lycées!$A17)=0,"",COUNTIF(JG!$D$4:$D$178,Lycées!$A17)) ->  | D17: =IF(COUNTIF(JF!$D$4:$D$647,Lycées!A17)=0,"",COUNTIF(JF!$D$4:$D$647,Lycées!A17)) -> 6 | E17: =IF(Lycées!$A17="","",((COUNTIFS(JG!$D$4:$D$178,Lycées!$A17,JG!$L$4:$L$178,"1")+COUNTIFS(JF!$D$4:$D$647,Lycées!$A17,JF!$L$4:$L$647,"1")))) -> 0 | F17: =IF((B17=""),"",SUMIFS(JG!$N$4:$N$178,JG!$D$4:$D$178,Lycées!$A17)) -> 0 | G17: =IF(Lycées!$F17="","",RANK(Lycées!$F$3:$F$30,Lycées!$F$3:$F$30,0)) -> 9 | H17: =IF(B17="","",SUMIFS(JF!$N$4:$N$647,JF!$D$4:$D$647,Lycées!$A17)) -> 0 | I17: =IF(Lycées!$D17="","",RANK(Lycées!$H$3:$H$30,Lycées!$H$3:$H$30,0)) -> 10
A18: LMRL | B18: =IF(Lycées!$A18="","",SUM(Lycées!$C18,Lycées!$D18)) -> 0 | C18: =IF(COUNTIF(JG!$D$4:$D$178,Lycées!$A18)=0,"",COUNTIF(JG!$D$4:$D$178,Lycées!$A18)) ->  | D18: =IF(COUNTIF(JF!$D$4:$D$647,Lycées!A18)=0,"",COUNTIF(JF!$D$4:$D$647,Lycées!A18)) ->  | E18: =IF(Lycées!$A18="","",((COUNTIFS(JG!$D$4:$D$178,Lycées!$A18,JG!$L$4:$L$178,"1")+COUNTIFS(JF!$D$4:$D$647,Lycées!$A18,JF!$L$4:$L$647,"1")))) -> 0 | F18: =IF((B18=""),"",SUMIFS(JG!$N$4:$N$178,JG!$D$4:$D$178,Lycées!$A18)) -> 0 | G18: =IF(Lycées!$F18="","",RANK(Lycées!$F$3:$F$30,Lycées!$F$3:$F$30,0)) -> 9 | H18: =IF(B18="","",SUMIFS(JF!$N$4:$N$647,JF!$D$4:$D$647,Lycées!$A18)) -> 0 | I18: =IF(Lycées!$D18="","",RANK(Lycées!$H$3:$H$30,Lycées!$H$3:$H$30,0)) -> 
A19: EPSA | B19: =IF(Lycées!$A19="","",SUM(Lycées!$C19,Lycées!$D19)) -> 6 | C19: =IF(COUNTIF(JG!$D$4:$D$178,Lycées!$A19)=0,"",COUNTIF(JG!$D$4:$D$178,Lycées!$A19)) ->  | D19: =IF(COUNTIF(JF!$D$4:$D$647,Lycées!A19)=0,"",COUNTIF(JF!$D$4:$D$647,Lycées!A19)) -> 6 | E19: =IF(Lycées!$A19="","",((COUNTIFS(JG!$D$4:$D$178,Lycées!$A19,JG!$L$4:$L$178,"1")+COUNTIFS(JF!$D$4:$D$647,Lycées!$A19,JF!$L$4:$L$647,"1")))) -> 0 | F19: =IF((B19=""),"",SUMIFS(JG!$N$4:$N$178,JG!$D$4:$D$178,Lycées!$A19)) -> 0 | G19: =IF(Lycées!$F19="","",RANK(Lycées!$F$3:$F$30,Lycées!$F$3:$F$30,0)) -> 9 | H19: =IF(B19="","",SUMIFS(JF!$N$4:$N$647,JF!$D$4:$D$647,Lycées!$A19)) -> 0 | I19: =IF(Lycées!$D19="","",RANK(Lycées!$H$3:$H$30,Lycées!$H$3:$H$30,0)) -> 10
A20: AL | B20: =IF(Lycées!$A20="","",SUM(Lycées!$C20,Lycées!$D20)) -> 5 | C20: =IF(COUNTIF(JG!$D$4:$D$178,Lycées!$A20)=0,"",COUNTIF(JG!$D$4:$D$178,Lycées!$A20)) -> 1 | D20: =IF(COUNTIF(JF!$D$4:$D$647,Lycées!A20)=0,"",COUNTIF(JF!$D$4:$D$647,Lycées!A20)) -> 4 | E20: =IF(Lycées!$A20="","",((COUNTIFS(JG!$D$4:$D$178,Lycées!$A20,JG!$L$4:$L$178,"1")+COUNTIFS(JF!$D$4:$D$647,Lycées!$A20,JF!$L$4:$L$647,"1")))) -> 0 | F20: =IF((B20=""),"",SUMIFS(JG!$N$4:$N$178,JG!$D$4:$D$178,Lycées!$A20)) -> 0 | G20: =IF(Lycées!$F20="","",RANK(Lycées!$F$3:$F$30,Lycées!$F$3:$F$30,0)) -> 9 | H20: =IF(B20="","",SUMIFS(JF!$N$4:$N$647,JF!$D$4:$D$647,Lycées!$A20)) -> 1 | I20: =IF(Lycées!$D20="","",RANK(Lycées!$H$3:$H$30,Lycées!$H$3:$H$30,0)) -> 7
A21: LCD | B21: =IF(Lycées!$A21="","",SUM(Lycées!$C21,Lycées!$D21)) -> 10 | C21: =IF(COUNTIF(JG!$D$4:$D$178,Lycées!$A21)=0,"",COUNTIF(JG!$D$4:$D$178,Lycées!$A21)) -> 2 | D21: =IF(COUNTIF(JF!$D$4:$D$647,Lycées!A21)=0,"",COUNTIF(JF!$D$4:$D$647,Lycées!A21)) -> 8 | E21: =IF(Lycées!$A21="","",((COUNTIFS(JG!$D$4:$D$178,Lycées!$A21,JG!$L$4:$L$178,"1")+COUNTIFS(JF!$D$4:$D$647,Lycées!$A21,JF!$L$4:$L$647,"1")))) -> 2 | F21: =IF((B21=""),"",SUMIFS(JG!$N$4:$N$178,JG!$D$4:$D$178,Lycées!$A21)) -> 5 | G21: =IF(Lycées!$F21="","",RANK(Lycées!$F$3:$F$30,Lycées!$F$3:$F$30,0)) -> 2 | H21: =IF(B21="","",SUMIFS(JF!$N$4:$N$647,JF!$D$4:$D$647,Lycées!$A21)) -> 4 | I21: =IF(Lycées!$D21="","",RANK(Lycées!$H$3:$H$30,Lycées!$H$3:$H$30,0)) -> 4
A22: LML | B22: =IF(Lycées!$A22="","",SUM(Lycées!$C22,Lycées!$D22)) -> 3 | C22: =IF(COUNTIF(JG!$D$4:$D$178,Lycées!$A22)=0,"",COUNTIF(JG!$D$4:$D$178,Lycées!$A22)) -> 1 | D22: =IF(COUNTIF(JF!$D$4:$D$647,Lycées!A22)=0,"",COUNTIF(JF!$D$4:$D$647,Lycées!A22)) -> 2 | E22: =IF(Lycées!$A22="","",((COUNTIFS(JG!$D$4:$D$178,Lycées!$A22,JG!$L$4:$L$178,"1")+COUNTIFS(JF!$D$4:$D$647,Lycées!$A22,JF!$L$4:$L$647,"1")))) -> 1 | F22: =IF((B22=""),"",SUMIFS(JG!$N$4:$N$178,JG!$D$4:$D$178,Lycées!$A22)) -> 3 | G22: =IF(Lycées!$F22="","",RANK(Lycées!$F$3:$F$30,Lycées!$F$3:$F$30,0)) -> 4 | H22: =IF(B22="","",SUMIFS(JF!$N$4:$N$647,JF!$D$4:$D$647,Lycées!$A22)) -> 0 | I22: =IF(Lycées!$D22="","",RANK(Lycées!$H$3:$H$30,Lycées!$H$3:$H$30,0)) -> 10
A23: LAM | B23: =IF(Lycées!$A23="","",SUM(Lycées!$C23,Lycées!$D23)) -> 1 | C23: =IF(COUNTIF(JG!$D$4:$D$178,Lycées!$A23)=0,"",COUNTIF(JG!$D$4:$D$178,Lycées!$A23)) -> 1 | D23: =IF(COUNTIF(JF!$D$4:$D$647,Lycées!A23)=0,"",COUNTIF(JF!$D$4:$D$647,Lycées!A23)) ->  | E23: =IF(Lycées!$A23="","",((COUNTIFS(JG!$D$4:$D$178,Lycées!$A23,JG!$L$4:$L$178,"1")+COUNTIFS(JF!$D$4:$D$647,Lycées!$A23,JF!$L$4:$L$647,"1")))) -> 1 | F23: =IF((B23=""),"",SUMIFS(JG!$N$4:$N$178,JG!$D$4:$D$178,Lycées!$A23)) -> 3 | G23: =IF(Lycées!$F23="","",RANK(Lycées!$F$3:$F$30,Lycées!$F$3:$F$30,0)) -> 4 | H23: =IF(B23="","",SUMIFS(JF!$N$4:$N$647,JF!$D$4:$D$647,Lycées!$A23)) -> 0 | I23: =IF(Lycées!$D23="","",RANK(Lycées!$H$3:$H$30,Lycées!$H$3:$H$30,0)) -> 
A24: SL | B24: =IF(Lycées!$A24="","",SUM(Lycées!$C24,Lycées!$D24)) -> 2 | C24: =IF(COUNTIF(JG!$D$4:$D$178,Lycées!$A24)=0,"",COUNTIF(JG!$D$4:$D$178,Lycées!$A24)) ->  | D24: =IF(COUNTIF(JF!$D$4:$D$647,Lycées!A24)=0,"",COUNTIF(JF!$D$4:$D$647,Lycées!A24)) -> 2 | E24: =IF(Lycées!$A24="","",((COUNTIFS(JG!$D$4:$D$178,Lycées!$A24,JG!$L$4:$L$178,"1")+COUNTIFS(JF!$D$4:$D$647,Lycées!$A24,JF!$L$4:$L$647,"1")))) -> 1 | F24: =IF((B24=""),"",SUMIFS(JG!$N$4:$N$178,JG!$D$4:$D$178,Lycées!$A24)) -> 0 | G24: =IF(Lycées!$F24="","",RANK(Lycées!$F$3:$F$30,Lycées!$F$3:$F$30,0)) -> 9 | H24: =IF(B24="","",SUMIFS(JF!$N$4:$N$647,JF!$D$4:$D$647,Lycées!$A24)) -> 4 | I24: =IF(Lycées!$D24="","",RANK(Lycées!$H$3:$H$30,Lycées!$H$3:$H$30,0)) -> 4
A25: LN | B25: =IF(Lycées!$A25="","",SUM(Lycées!$C25,Lycées!$D25)) -> 2 | C25: =IF(COUNTIF(JG!$D$4:$D$178,Lycées!$A25)=0,"",COUNTIF(JG!$D$4:$D$178,Lycées!$A25)) ->  | D25: =IF(COUNTIF(JF!$D$4:$D$647,Lycées!A25)=0,"",COUNTIF(JF!$D$4:$D$647,Lycées!A25)) -> 2 | E25: =IF(Lycées!$A25="","",((COUNTIFS(JG!$D$4:$D$178,Lycées!$A25,JG!$L$4:$L$178,"1")+COUNTIFS(JF!$D$4:$D$647,Lycées!$A25,JF!$L$4:$L$647,"1")))) -> 0 | F25: =IF((B25=""),"",SUMIFS(JG!$N$4:$N$178,JG!$D$4:$D$178,Lycées!$A25)) -> 0 | G25: =IF(Lycées!$F25="","",RANK(Lycées!$F$3:$F$30,Lycées!$F$3:$F$30,0)) -> 9 | H25: =IF(B25="","",SUMIFS(JF!$N$4:$N$647,JF!$D$4:$D$647,Lycées!$A25)) -> 0 | I25: =IF(Lycées!$D25="","",RANK(Lycées!$H$3:$H$30,Lycées!$H$3:$H$30,0)) -> 10
B26: =IF(Lycées!$A26="","",SUM(Lycées!$C26,Lycées!$D26)) ->  | C26: =IF(COUNTIF(JG!$D$4:$D$17,Lycées!$A26)=0,"",COUNTIF(JG!$D$4:$D$17,Lycées!$A26)) ->  | D26: =IF(COUNTIF(JF!$D$4:$D$62,Lycées!A26)=0,"",COUNTIF(JF!$D$4:$D$62,Lycées!A26)) ->  | E26: =IF(Lycées!$A26="","",((COUNTIFS(JG!$D$4:$D$17,Lycées!$A26,JG!$L$4:$L$17,"1")+COUNTIFS(JF!$D$4:$D$62,Lycées!$A26,JF!$L$4:$L$62,"1")))) ->  | F26: =IF((B26=""),"",SUMIFS(JG!$N$4:$N$17,JG!$D$4:$D$17,Lycées!$A26)) ->  | G26: =IF(Lycées!$F26="","",RANK(Lycées!$F$3:$F$30,Lycées!$F$3:$F$30,0)) ->  | H26: =IF(B26="","",SUMIFS(JF!$N$4:$N$62,JF!$D$4:$D$62,Lycées!$A26)) ->  | I26: =IF(Lycées!$D26="","",RANK(Lycées!$H$3:$H$30,Lycées!$H$3:$H$30,0)) -> 
B27: =IF(Lycées!$A27="","",SUM(Lycées!$C27,Lycées!$D27)) ->  | C27: =IF(COUNTIF(JG!$D$4:$D$17,Lycées!$A27)=0,"",COUNTIF(JG!$D$4:$D$17,Lycées!$A27)) ->  | D27: =IF(COUNTIF(JF!$D$4:$D$62,Lycées!A27)=0,"",COUNTIF(JF!$D$4:$D$62,Lycées!A27)) ->  | E27: =IF(Lycées!$A27="","",((COUNTIFS(JG!$D$4:$D$17,Lycées!$A27,JG!$L$4:$L$17,"1")+COUNTIFS(JF!$D$4:$D$62,Lycées!$A27,JF!$L$4:$L$62,"1")))) ->  | F27: =IF((B27=""),"",SUMIFS(JG!$N$4:$N$17,JG!$D$4:$D$17,Lycées!$A27)) ->  | G27: =IF(Lycées!$F27="","",RANK(Lycées!$F$3:$F$30,Lycées!$F$3:$F$30,0)) ->  | H27: =IF(B27="","",SUMIFS(JF!$N$4:$N$62,JF!$D$4:$D$62,Lycées!$A27)) ->  | I27: =IF(Lycées!$D27="","",RANK(Lycées!$H$3:$H$30,Lycées!$H$3:$H$30,0)) -> 
B28: =IF(Lycées!$A28="","",SUM(Lycées!$C28,Lycées!$D28)) ->  | C28: =IF(COUNTIF(JG!$D$4:$D$17,Lycées!$A28)=0,"",COUNTIF(JG!$D$4:$D$17,Lycées!$A28)) ->  | D28: =IF(COUNTIF(JF!$D$4:$D$62,Lycées!A28)=0,"",COUNTIF(JF!$D$4:$D$62,Lycées!A28)) ->  | E28: =IF(Lycées!$A28="","",((COUNTIFS(JG!$D$4:$D$17,Lycées!$A28,JG!$L$4:$L$17,"1")+COUNTIFS(JF!$D$4:$D$62,Lycées!$A28,JF!$L$4:$L$62,"1")))) ->  | F28: =IF((B28=""),"",SUMIFS(JG!$N$4:$N$17,JG!$D$4:$D$17,Lycées!$A28)) ->  | G28: =IF(Lycées!$F28="","",RANK(Lycées!$F$3:$F$30,Lycées!$F$3:$F$30,0)) ->  | H28: =IF(B28="","",SUMIFS(JF!$N$4:$N$62,JF!$D$4:$D$62,Lycées!$A28)) ->  | I28: =IF(Lycées!$D28="","",RANK(Lycées!$H$3:$H$30,Lycées!$H$3:$H$30,0)) -> 
B29: =IF(Lycées!$A29="","",SUM(Lycées!$C29,Lycées!$D29)) ->  | C29: =IF(COUNTIF(JG!$D$4:$D$17,Lycées!$A29)=0,"",COUNTIF(JG!$D$4:$D$17,Lycées!$A29)) ->  | D29: =IF(COUNTIF(JF!$D$4:$D$62,Lycées!A29)=0,"",COUNTIF(JF!$D$4:$D$62,Lycées!A29)) ->  | E29: =IF(Lycées!$A29="","",((COUNTIFS(JG!$D$4:$D$17,Lycées!$A29,JG!$L$4:$L$17,"1")+COUNTIFS(JF!$D$4:$D$62,Lycées!$A29,JF!$L$4:$L$62,"1")))) ->  | F29: =IF((B29=""),"",SUMIFS(JG!$N$4:$N$17,JG!$D$4:$D$17,Lycées!$A29)) ->  | G29: =IF(Lycées!$F29="","",RANK(Lycées!$F$3:$F$30,Lycées!$F$3:$F$30,0)) ->  | H29: =IF(B29="","",SUMIFS(JF!$N$4:$N$62,JF!$D$4:$D$62,Lycées!$A29)) ->  | I29: =IF(Lycées!$D29="","",RANK(Lycées!$H$3:$H$30,Lycées!$H$3:$H$30,0)) -> 
B30: =IF(Lycées!$A30="","",SUM(Lycées!$C30,Lycées!$D30)) ->  | C30: =IF(COUNTIF(JG!$D$4:$D$17,Lycées!$A30)=0,"",COUNTIF(JG!$D$4:$D$17,Lycées!$A30)) ->  | D30: =IF(COUNTIF(JF!$D$4:$D$62,Lycées!A30)=0,"",COUNTIF(JF!$D$4:$D$62,Lycées!A30)) ->  | E30: =IF(Lycées!$A30="","",((COUNTIFS(JG!$D$4:$D$17,Lycées!$A30,JG!$L$4:$L$17,"1")+COUNTIFS(JF!$D$4:$D$62,Lycées!$A30,JF!$L$4:$L$62,"1")))) ->  | F30: =IF((B30=""),"",SUMIFS(JG!$N$4:$N$17,JG!$D$4:$D$17,Lycées!$A30)) ->  | G30: =IF(Lycées!$F30="","",RANK(Lycées!$F$3:$F$30,Lycées!$F$3:$F$30,0)) ->  | H30: =IF(B30="","",SUMIFS(JF!$N$4:$N$62,JF!$D$4:$D$62,Lycées!$A30)) ->  | I30: =IF(Lycées!$D30="","",RANK(Lycées!$H$3:$H$30,Lycées!$H$3:$H$30,0)) -> 

Sheet JG
B1: Classement général - Jeunes Gens | N1: CHAMPIONNAT LASEL GYM OPEN
H2: Résultats
A3: ID | B3: Nom | C3: Prénom | D3: Lycée | E3: Sexe | F3: Cat | G3: Groupe | H3: Barres | I3: Sol | J3: Arcons | K3: Somme | L3: Rang/Cat | M3: cat2 | N3: PointsLycée
A4: 21 | B4: Scheuer | C4: Christophe | D4: AL | E4: m | F4: Min_Aff | G4: 3 | H4: 11.45 | I4: 12.7 | J4: 12 | K4: =IF(SUM(JG!$H4:$J4)=0,"",SUM(JG!$H4:$J4)) -> 36.15 | L4: =IF(K4="","",1+SUMPRODUCT((F$4:F$17=F4)*(K$4:K$17>K4))) -> 4 | M4: =JG!$F4 -> Min_Aff | N4: =IF(JG!$L4=1,3,0)+IF(JG!$L4=2,2,0)+IF(JG!$L4=3,1,0) -> 0
A5: 14 | B5: Diesner | C5: Jakob | D5: LHCE | E5: m | F5: Min_Aff | G5: 1 | H5: 12.9 | I5: 13 | J5: 13.45 | K5: =IF(SUM(JG!$H5:$J5)=0,"",SUM(JG!$H5:$J5)) -> 39.35 | L5: 1 | M5: =JG!$F5 -> Min_Aff | N5: =IF(JG!$L5=1,3,0)+IF(JG!$L5=2,2,0)+IF(JG!$L5=3,1,0) -> 3
A6: 3 | B6: Gschwend | C6: Ben | D6: LHCE | E6: m | F6: Min_Aff | G6: 1 | H6: 12.5 | I6: 12.3 | J6: 13.3 | K6: =IF(SUM(JG!$H6:$J6)=0,"",SUM(JG!$H6:$J6)) -> 38.1 | L6: 2 | M6: =JG!$F6 -> Min_Aff | N6: =IF(JG!$L6=1,3,0)+IF(JG!$L6=2,2,0)+IF(JG!$L6=3,1,0) -> 2
A7: 19 | B7: Büchler | C7: Jérôme | D7: LHCE | E7: m | F7: Jun_Aff | G7: 1 | H7: 14.7 | I7: 14.4 | J7: 14.7 | K7: =IF(SUM(JG!$H7:$J7)=0,"",SUM(JG!$H7:$J7)) -> 43.8 | L7: 2 | M7: =JG!$F7 -> Jun_Aff | N7: =IF(JG!$L7=1,3,0)+IF(JG!$L7=2,2,0)+IF(JG!$L7=3,1,0) -> 2
A8: 9 | B8: Bastos | C8: Noah | D8: LTL | E8: m | F8: Min_Aff | G8: 2 | H8: 11.2 | I8: 14 | J8: 12.2 | K8: =IF(SUM(JG!$H8:$J8)=0,"",SUM(JG!$H8:$J8)) -> 37.4 | L8: 3 | M8: =JG!$F8 -> Min_Aff | N8: =IF(JG!$L8=1,3,0)+IF(JG!$L8=2,2,0)+IF(JG!$L8=3,1,0) -> 1
A9: 6 | B9: FERREIRA | C9: Martim | D9: LTL | E9: m | F9: Cad_Aff | G9: 2 | H9: 13 | I9: 13.9 | J9: 13.5 | K9: =IF(SUM(JG!$H9:$J9)=0,"",SUM(JG!$H9:$J9)) -> 40.4 | L9: 1 | M9: =JG!$F9 -> Cad_Aff | N9: =IF(JG!$L9=1,3,0)+IF(JG!$L9=2,2,0)+IF(JG!$L9=3,1,0) -> 3
A10: 2 | B10: Leclerc | C10: Sam | D10: LTL | E10: m | F10: Sen_Aff | G10: 2 | H10: 13.1 | I10: 15.2 | J10: 11.9 | K10: =IF(SUM(JG!$H10:$J10)=0,"",SUM(JG!$H10:$J10)) -> 40.2 | L10: 3 | M10: =JG!$F10 -> Sen_Aff | N10: =IF(JG!$L10=1,3,0)+IF(JG!$L10=2,2,0)+IF(JG!$L10=3,1,0) -> 1
A11: 22 | B11: Schwarz | C11: Florian | D11: LML | E11: m | F11: Jun_Aff | G11: 3 | H11: 14.7 | I11: 14.6 | J11: 15.5 | K11: =IF(SUM(JG!$H11:$J11)=0,"",SUM(JG!$H11:$J11)) -> 44.8 | L11: 1 | M11: =JG!$F11 -> Jun_Aff | N11: =IF(JG!$L11=1,3,0)+IF(JG!$L11=2,2,0)+IF(JG!$L11=3,1,0) -> 3
A12: 4 | B12: Weiwert | C12: Steve | D12: LAM | E12: m | F12: Sen_Aff | G12: 3 | H12: 15.2 | I12: 15.1 | J12: 16.4 | K12: =IF(SUM(JG!$H12:$J12)=0,"",SUM(JG!$H12:$J12)) -> 46.7 | L12: 1 | M12: =JG!$F12 -> Sen_Aff | N12: =IF(JG!$L12=1,3,0)+IF(JG!$L12=2,2,0)+IF(JG!$L12=3,1,0) -> 3
A13: 10 | B13: Boccarello | C13: Matteo | D13: ALR | E13: m | F13: Min_NA | G13: 3 | H13: 4.1 | I13: 10.2 | K13: =IF(SUM(JG!$H13:$J13)=0,"",SUM(JG!$H13:$J13)) -> 14.3 | L13: 1 | M13: =JG!$F13 -> Min_NA | N13: =IF(JG!$L13=1,3,0)+IF(JG!$L13=2,2,0)+IF(JG!$L13=3,1,0) -> 3
A14: 20 | B14: DUVAL | C14: Evan | D14: LAML | E14: m | F14: Cad_Aff | G14: 1 | H14: 11.9 | I14: 13.7 | J14: 12.05 | K14: =IF(SUM(JG!$H14:$J14)=0,"",SUM(JG!$H14:$J14)) -> 37.65 | L14: 2 | M14: =JG!$F14 -> Cad_Aff | N14: =IF(JG!$L14=1,3,0)+IF(JG!$L14=2,2,0)+IF(JG!$L14=3,1,0) -> 2
A15: 13 | B15: LEYSER | C15: Lino | D15: LAML | E15: m | F15: Cad_Aff | G15: 1 | H15: 10.7 | I15: 13.2 | J15: 9.2 | K15: =IF(SUM(JG!$H15:$J15)=0,"",SUM(JG!$H15:$J15)) -> 33.1 | L15: 3 | M15: =JG!$F15 -> Cad_Aff | N15: =IF(JG!$L15=1,3,0)+IF(JG!$L15=2,2,0)+IF(JG!$L15=3,1,0) -> 1
A16: 18 | B16: SCHOMER | C16: Tom | D16: LAML | E16: m | F16: Sen_Aff | G16: 1 | H16: 11.75 | I16: 13.4 | J16: 12.65 | K16: =IF(SUM(JG!$H16:$J16)=0,"",SUM(JG!$H16:$J16)) -> 37.8 | L16: 4 | M16: =JG!$F16 -> Sen_Aff | N16: =IF(JG!$L16=1,3,0)+IF(JG!$L16=2,2,0)+IF(JG!$L16=3,1,0) -> 0
A17: 5 | B17: Sappada | C17: Christian | D17: LTMAL | E17: m | F17: Sen_Aff | G17: 2 | H17: 14 | I17: 15.2 | J17: 15.8 | K17: =IF(SUM(JG!$H17:$J17)=0,"",SUM(JG!$H17:$J17)) -> 45 | L17: 2 | M17: =JG!$F17 -> Sen_Aff | N17: =IF(JG!$L17=1,3,0)+IF(JG!$L17=2,2,0)+IF(JG!$L17=3,1,0) -> 2
B18: Schloesser | C18: Yann | D18: LCD | E18: m | F18: Min_NA | G18: 2 | H18: 2.7 | I18: 10.4 | K18: =IF(SUM(JG!$H18:$J18)=0,"",SUM(JG!$H18:$J18)) -> 13.1 | L18: 2 | M18: =JG!$F18 -> Min_NA | N18: =IF(JG!$L18=1,3,0)+IF(JG!$L18=2,2,0)+IF(JG!$L18=3,1,0) -> 2
B19: Ferrandini | C19: Yannick | D19: LCD | E19: m | F19: Cad_NA | G19: 2 | H19: 3.85 | I19: 11.7 | K19: =IF(SUM(JG!$H19:$J19)=0,"",SUM(JG!$H19:$J19)) -> 15.55 | L19: 1 | M19: =JG!$F19 -> Cad_NA | N19: =IF(JG!$L19=1,3,0)+IF(JG!$L19=2,2,0)+IF(JG!$L19=3,1,0) -> 3

Sheet JF
B1: Classement général - Jeunes Filles | N1: CHAMPIONNAT LASEL GYM OPEN
H2: Résultats
A3: ID | B3: Nom | C3: Prénom | D3: Lycée | E3: Sexe | F3: Cat | G3: Groupe | H3: Barres | I3: Sol | J3: Saut | K3: Somme | L3: Rang/Cat | M3: cat2 | N3: PointsLycée
A4: 41 | B4: Palermo | C4: Mica | D4: EPSA | E4: f | F4: CAD_AFF | G4: 1 | H4: 13.1 | I4: 14.9 | J4: 16 | K4: =IF(SUM(JF!$I4:$J4)=0,"",SUM(JF!$I4:$J4)) -> 30.9 | L4: =IF(K4="","",1+SUMPRODUCT(($F$4:$F$62=F4)*($K$4:$K$62>K4))) -> 19 | M4: =JF!$F4 -> CAD_AFF | N4: =IF(JF!$L4=1,3,0)+IF(JF!$L4=2,2,0)+IF(JF!$L4=3,1,0) -> 0
A5: 13 | B5: Graf | C5: Lisi | D5: EPSA | E5: f | F5: MIN_AFF | G5: 1 | H5: 15.65 | I5: 14.9 | J5: 16.3 | K5: =IF(SUM(JF!$I5:$J5)=0,"",SUM(JF!$I5:$J5)) -> 31.2 | L5: 15 | M5: =JF!$F5 -> MIN_AFF | N5: =IF(JF!$L5=1,3,0)+IF(JF!$L5=2,2,0)+IF(JF!$L5=3,1,0) -> 0
A6: 26 | B6: Behrens | C6: Svenja | D6: EPSA | E6: f | F6: CAD_AFF | G6: 1 | H6: 15.05 | I6: 14.8 | J6: 16.2 | K6: =IF(SUM(JF!$I6:$J6)=0,"",SUM(JF!$I6:$J6)) -> 31 | L6: 18 | M6: =JF!$F6 -> CAD_AFF | N6: =IF(JF!$L6=1,3,0)+IF(JF!$L6=2,2,0)+IF(JF!$L6=3,1,0) -> 0
A7: 36 | B7: Ginter | C7: Lena | D7: EPSA | E7: f | F7: CAD_NA | G7: 1 | I7: 13.5 | J7: 12 | K7: =IF(SUM(JF!$I7:$J7)=0,"",SUM(JF!$I7:$J7)) -> 25.5 | L7: 4 | M7: =JF!$F7 -> CAD_NA | N7: =IF(JF!$L7=1,3,0)+IF(JF!$L7=2,2,0)+IF(JF!$L7=3,1,0) -> 0
A8: 27 | B8: Thomas | C8: Yana | D8: EPSA | E8: f | F8: CAD_AFF | G8: 1 | H8: 9.95 | I8: 14.7 | J8: 16 | K8: =IF(SUM(JF!$I8:$J8)=0,"",SUM(JF!$I8:$J8)) -> 30.7 | L8: 20 | M8: =JF!$F8 -> CAD_AFF | N8: =IF(JF!$L8=1,3,0)+IF(JF!$L8=2,2,0)+IF(JF!$L8=3,1,0) -> 0
A9: 19 | B9: Leshwange | C9: Marie | D9: EPSA | E9: f | F9: CAD_NA | G9: 1 | I9: 11.5 | J9: 12.5 | K9: =IF(SUM(JF!$I9:$J9)=0,"",SUM(JF!$I9:$J9)) -> 24 | L9: 7 | M9: =JF!$F9 -> CAD_NA | N9: =IF(JF!$L9=1,3,0)+IF(JF!$L9=2,2,0)+IF(JF!$L9=3,1,0) -> 0
A10: 32 | B10: Pereira | C10: Daniela | D10: LNB | E10: f | F10: MIN_AFF | G10: 1 | H10: 11.45 | I10: 14.1 | J10: 15.6 | K10: =IF(SUM(JF!$I10:$J10)=0,"",SUM(JF!$I10:$J10)) -> 29.7 | L10: 19 | M10: =JF!$F10 -> MIN_AFF | N10: =IF(JF!$L10=1,3,0)+IF(JF!$L10=2,2,0)+IF(JF!$L10=3,1,0) -> 0
A11: 71 | B11: Bordicchia | C11: Luana | D11: LNB | E11: f | F11: CAD_AFF | G11: 1 | H11: 10.4 | I11: 14.2 | J11: 15.8 | K11: =IF(SUM(JF!$I11:$J11)=0,"",SUM(JF!$I11:$J11)) -> 30 | L11: 21 | M11: =JF!$F11 -> CAD_AFF | N11: =IF(JF!$L11=1,3,0)+IF(JF!$L11=2,2,0)+IF(JF!$L11=3,1,0) -> 0
A12: 46 | B12: Krier | C12: Mia | D12: LNB | E12: f | F12: MIN_AFF | G12: 1 | H12: 15.15 | I12: 14.8 | J12: 16 | K12: =IF(SUM(JF!$I12:$J12)=0,"",SUM(JF!$I12:$J12)) -> 30.8 | L12: 16 | M12: =JF!$F12 -> MIN_AFF | N12: =IF(JF!$L12=1,3,0)+IF(JF!$L12=2,2,0)+IF(JF!$L12=3,1,0) -> 0
A13: 73 | B13: Divo | C13: Lena | D13: LNB | E13: f | F13: CAD_AFF | G13: 1 | H13: 16.2 | I13: 15.6 | J13: 16.3 | K13: =IF(SUM(JF!$I13:$J13)=0,"",SUM(JF!$I13:$J13)) -> 31.9 | L13: 17 | M13: =JF!$F13 -> CAD_AFF | N13: =IF(JF!$L13=1,3,0)+IF(JF!$L13=2,2,0)+IF(JF!$L13=3,1,0) -> 0
A14: 21 | B14: Kirsch | C14: Ella | D14: LNB | E14: f | F14: MIN_AFF | G14: 1 | H14: 16.15 | I14: 15.4 | J14: 16.15 | K14: =IF(SUM(JF!$I14:$J14)=0,"",SUM(JF!$I14:$J14)) -> 31.55 | L14: 14 | M14: =JF!$F14 -> MIN_AFF | N14: =IF(JF!$L14=1,3,0)+IF(JF!$L14=2,2,0)+IF(JF!$L14=3,1,0) -> 0
A15: 20 | B15: Da Silva Carvalho | C15: Vanessa | D15: LNB | E15: f | F15: MIN_AFF | G15: 1 | H15: 15.7 | I15: 15.5 | J15: 16.4 | K15: =IF(SUM(JF!$I15:$J15)=0,"",SUM(JF!$I15:$J15)) -> 31.9 | L15: 13 | M15: =JF!$F15 -> MIN_AFF | N15: =IF(JF!$L15=1,3,0)+IF(JF!$L15=2,2,0)+IF(JF!$L15=3,1,0) -> 0
A16: 2 | B16: Cherrier | C16: Aurélie | D16: AL | E16: f | F16: MIN_NA | G16: 1 | I16: 12.2 | J16: 11 | K16: =IF(SUM(JF!$I16:$J16)=0,"",SUM(JF!$I16:$J16)) -> 23.2 | L16: 5 | M16: =JF!$F16 -> MIN_NA | N16: =IF(JF!$L16=1,3,0)+IF(JF!$L16=2,2,0)+IF(JF!$L16=3,1,0) -> 0
A17: 1 | B17: Helfrich | C17: Lea | D17: AL | E17: f | F17: MIN_NA | G17: 1 | I17: 12.5 | J17: 10.8 | K17: =IF(SUM(JF!$I17:$J17)=0,"",SUM(JF!$I17:$J17)) -> 23.3 | L17: 4 | M17: =JF!$F17 -> MIN_NA | N17: =IF(JF!$L17=1,3,0)+IF(JF!$L17=2,2,0)+IF(JF!$L17=3,1,0) -> 0
A18: 66 | B18: Georges | C18: Ines | D18: AL | E18: f | F18: MIN_NA | G18: 1 | I18: 12.2 | J18: 11.2 | K18: =IF(SUM(JF!$I18:$J18)=0,"",SUM(JF!$I18:$J18)) -> 23.4 | L18: 3 | M18: =JF!$F18 -> MIN_NA | N18: =IF(JF!$L18=1,3,0)+IF(JF!$L18=2,2,0)+IF(JF!$L18=3,1,0) -> 1
A19: 24 | B19: Jolivet | C19: Isabelle | D19: AL | E19: f | F19: MIN_NA | G19: 1 | I19: 11.2 | J19: 10.5 | K19: =IF(SUM(JF!$I19:$J19)=0,"",SUM(JF!$I19:$J19)) -> 21.7 | L19: 6 | M19: =JF!$F19 -> MIN_NA | N19: =IF(JF!$L19=1,3,0)+IF(JF!$L19=2,2,0)+IF(JF!$L19=3,1,0) -> 0
A20: 42 | B20: Serres | C20: Nora | D20: LCD | E20: f | F20: CAD_NA | G20: 1 | I20: 13.4 | J20: 12 | K20: =IF(SUM(JF!$I20:$J20)=0,"",SUM(JF!$I20:$J20)) -> 25.4 | L20: 5 | M20: =JF!$F20 -> CAD_NA | N20: =IF(JF!$L20=1,3,0)+IF(JF!$L20=2,2,0)+IF(JF!$L20=3,1,0) -> 0
A21: 43 | B21: Hendel | C21: Ly | D21: LCD | E21: f | F21: CAD_NA | G21: 1 | I21: 13.3 | J21: 14 | K21: =IF(SUM(JF!$I21:$J21)=0,"",SUM(JF!$I21:$J21)) -> 27.3 | L21: 3 | M21: =JF!$F21 -> CAD_NA | N21: =IF(JF!$L21=1,3,0)+IF(JF!$L21=2,2,0)+IF(JF!$L21=3,1,0) -> 1
A22: 3 | B22: Davie | C22: Emma | D22: LCD | E22: f | F22: CAD_NA | G22: 1 | I22: 14.7 | J22: 15.7 | K22: =IF(SUM(JF!$I22:$J22)=0,"",SUM(JF!$I22:$J22)) -> 30.4 | L22: 1 | M22: =JF!$F22 -> CAD_NA | N22: =IF(JF!$L22=1,3,0)+IF(JF!$L22=2,2,0)+IF(JF!$L22=3,1,0) -> 3
A23: 59 | B23: Mergen | C23: Chiara | D23: LCD | E23: f | F23: MIN_AFF | G23: 1 | H23: 14.25 | I23: 15.8 | J23: 16.2 | K23: =IF(SUM(JF!$I23:$J23)=0,"",SUM(JF!$I23:$J23)) -> 32 | L23: 12 | M23: =JF!$F23 -> MIN_AFF | N23: =IF(JF!$L23=1,3,0)+IF(JF!$L23=2,2,0)+IF(JF!$L23=3,1,0) -> 0
A24: 18 | B24: Christen | C24: Kim | D24: LCD | E24: f | F24: MIN_AFF | G24: 1 | H24: 14.75 | I24: 15 | J24: 15.7 | K24: =IF(SUM(JF!$I24:$J24)=0,"",SUM(JF!$I24:$J24)) -> 30.7 | L24: 17 | M24: =JF!$F24 -> MIN_AFF | N24: =IF(JF!$L24=1,3,0)+IF(JF!$L24=2,2,0)+IF(JF!$L24=3,1,0) -> 0
A25: 65 | B25: Christen | C25: Lis | D25: LCD | E25: f | F25: MIN_AFF | G25: 1 | H25: 14.85 | I25: 15 | J25: 15.4 | K25: =IF(SUM(JF!$I25:$J25)=0,"",SUM(JF!$I25:$J25)) -> 30.4 | L25: 18 | M25: =JF!$F25 -> MIN_AFF | N25: =IF(JF!$L25=1,3,0)+IF(JF!$L25=2,2,0)+IF(JF!$L25=3,1,0) -> 0
B26: Sinnes | C26: Nora | D26: LCD | E26: f | F26: CAD_AFF | G26: 1 | H26: 14.95 | I26: 15.9 | J26: 16.25 | K26: =IF(SUM(JF!$I26:$J26)=0,"",SUM(JF!$I26:$J26)) -> 32.15 | L26: 16 | M26: =JF!$F26 -> CAD_AFF | N26: =IF(JF!$L26=1,3,0)+IF(JF!$L26=2,2,0)+IF(JF!$L26=3,1,0) -> 0
B27: Kugner | C27: Vicky | D27: LCD | E27: f | F27: CAD_NA | G27: 1 | I27: 11.6 | J27: 13.8 | K27: =IF(SUM(JF!$I27:$J27)=0,"",SUM(JF!$I27:$J27)) -> 25.4 | L27: 5 | M27: =JF!$F27 -> CAD_NA | N27: =IF(JF!$L27=1,3,0)+IF(JF!$L27=2,2,0)+IF(JF!$L27=3,1,0) -> 0
A28: 57 | B28: Lenertz | C28: Maya | D28: LGE | E28: f | F28: CAD_AFF | G28: 2 | H28: 12.2 | I28: 12 | J28: 16.05 | K28: =IF(SUM(JF!$H28:$J28)=0,"",SUM(JF!$H28:$J28)) -> 40.25 | L28: 12 | M28: =JF!$F28 -> CAD_AFF | N28: =IF(JF!$L28=1,3,0)+IF(JF!$L28=2,2,0)+IF(JF!$L28=3,1,0) -> 0
A29: 37 | B29: Silva Santos | C29: Beatriz | D29: LGE | E29: f | F29: CAD_AFF | G29: 2 | H29: 9.2 | I29: 13.1 | J29: 12.3 | K29: =IF(SUM(JF!$H29:$J29)=0,"",SUM(JF!$H29:$J29)) -> 34.6 | L29: 15 | M29: =JF!$F29 -> CAD_AFF | N29: =IF(JF!$L29=1,3,0)+IF(JF!$L29=2,2,0)+IF(JF!$L29=3,1,0) -> 0
A30: 16 | B30: Poldrugo | C30: Fiona | D30: LGE | E30: f | F30: CAD_AFF | G30: 2 | H30: 13.9 | I30: 13 | J30: 15.8 | K30: =IF(SUM(JF!$H30:$J30)=0,"",SUM(JF!$H30:$J30)) -> 42.7 | L30: 10 | M30: =JF!$F30 -> CAD_AFF | N30: =IF(JF!$L30=1,3,0)+IF(JF!$L30=2,2,0)+IF(JF!$L30=3,1,0) -> 0
A31: 44 | B31: Da Grava | C31: Xenia | D31: LGE | E31: f | F31: CAD_AFF | G31: 2 | H31: 13.15 | I31: 11.3 | J31: 11.5 | K31: =IF(SUM(JF!$H31:$J31)=0,"",SUM(JF!$H31:$J31)) -> 35.95 | L31: 14 | M31: =JF!$F31 -> CAD_AFF | N31: =IF(JF!$L31=1,3,0)+IF(JF!$L31=2,2,0)+IF(JF!$L31=3,1,0) -> 0
A32: 38 | B32: Steichen | C32: Lyn | D32: LGE | E32: f | F32: CAD_AFF | G32: 2 | H32: 15.9 | I32: 15.6 | J32: 16.15 | K32: =IF(SUM(JF!$H32:$J32)=0,"",SUM(JF!$H32:$J32)) -> 47.65 | L32: 5 | M32: =JF!$F32 -> CAD_AFF | N32: =IF(JF!$L32=1,3,0)+IF(JF!$L32=2,2,0)+IF(JF!$L32=3,1,0) -> 0
B33: Gashi | C33: Hana | D33: LGE | E33: f | F33: CAD_AFF | G33: 2 | H33: 14.25 | I33: 13.5 | J33: 15.75 | K33: =IF(SUM(JF!$H33:$J33)=0,"",SUM(JF!$H33:$J33)) -> 43.5 | L33: 9 | M33: =JF!$F33 -> CAD_AFF | N33: =IF(JF!$L33=1,3,0)+IF(JF!$L33=2,2,0)+IF(JF!$L33=3,1,0) -> 0
A34: 15 | B34: Schleich | C34: Lola | D34: LHCE | E34: f | F34: MIN_AFF | G34: 2 | H34: 17 | I34: 15.9 | J34: 16.45 | K34: =IF(SUM(JF!$H34:$J34)=0,"",SUM(JF!$H34:$J34)) -> 49.35 | L34: 1 | M34: =JF!$F34 -> MIN_AFF | N34: =IF(JF!$L34=1,3,0)+IF(JF!$L34=2,2,0)+IF(JF!$L34=3,1,0) -> 3
A35: 47 | B35: Erpelding | C35: Kim | D35: LHCE | E35: f | F35: MIN_AFF | G35: 2 | H35: 14 | I35: 12.7 | J35: 15.55 | K35: =IF(SUM(JF!$H35:$J35)=0,"",SUM(JF!$H35:$J35)) -> 42.25 | L35: 8 | M35: =JF!$F35 -> MIN_AFF | N35: =IF(JF!$L35=1,3,0)+IF(JF!$L35=2,2,0)+IF(JF!$L35=3,1,0) -> 0
A36: 40 | B36: Oliveira Bras | C36: Juliana | D36: LHCE | E36: f | F36: MIN_AFF | G36: 2 | H36: 14.35 | I36: 13.8 | J36: 15.6 | K36: =IF(SUM(JF!$H36:$J36)=0,"",SUM(JF!$H36:$J36)) -> 43.75 | L36: =IF(K36="","",1+SUMPRODUCT(($F$4:$F$62=F36)*($K$4:$K$62>K36))) -> 7 | M36: =JF!$F36 -> MIN_AFF | N36: =IF(JF!$L36=1,3,0)+IF(JF!$L36=2,2,0)+IF(JF!$L36=3,1,0) -> 0
A37: 54 | B37: Castellucci | C37: Chiara | D37: LHCE | E37: f | F37: MIN_AFF | G37: 2 | H37: 16.65 | I37: 16.4 | J37: 16.3 | K37: =IF(SUM(JF!$H37:$J37)=0,"",SUM(JF!$H37:$J37)) -> 49.35 | L37: 1 | M37: =JF!$F37 -> MIN_AFF | N37: =IF(JF!$L37=1,3,0)+IF(JF!$L37=2,2,0)+IF(JF!$L37=3,1,0) -> 3
A38: 48 | B38: Paciotti | C38: Pamela | D38: LHCE | E38: f | F38: CAD_AFF | G38: 2 | H38: 16.45 | I38: 16.2 | J38: 16.4 | K38: =IF(SUM(JF!$H38:$J38)=0,"",SUM(JF!$H38:$J38)) -> 49.05 | L38: 2 | M38: =JF!$F38 -> CAD_AFF | N38: =IF(JF!$L38=1,3,0)+IF(JF!$L38=2,2,0)+IF(JF!$L38=3,1,0) -> 2
A39: 35 | B39: Mousel | C39: Magali | D39: LHCE | E39: f | F39: CAD_AFF | G39: 2 | H39: 15.45 | I39: 16 | J39: 16.4 | K39: =IF(SUM(JF!$H39:$J39)=0,"",SUM(JF!$H39:$J39)) -> 47.85 | L39: 4 | M39: =JF!$F39 -> CAD_AFF | N39: =IF(JF!$L39=1,3,0)+IF(JF!$L39=2,2,0)+IF(JF!$L39=3,1,0) -> 0
A40: 39 | B40: Leisen | C40: Noé | D40: LTL | E40: f | F40: MIN_AFF | G40: 2 | H40: 16 | I40: 15.8 | J40: 16.5 | K40: =IF(SUM(JF!$H40:$J40)=0,"",SUM(JF!$H40:$J40)) -> 48.3 | L40: 4 | M40: =JF!$F40 -> MIN_AFF | N40: =IF(JF!$L40=1,3,0)+IF(JF!$L40=2,2,0)+IF(JF!$L40=3,1,0) -> 0
A41: 51 | B41: Ramos | C41: Leatitia | D41: LTL | E41: f | F41: JUN_AFF | G41: 2 | H41: 11.3 | I41: 13.6 | K41: =IF(SUM(JF!$H41:$J41)=0,"",SUM(JF!$H41:$J41)) -> 24.9 | L41: 1 | M41: =JF!$F41 -> JUN_AFF | N41: =IF(JF!$L41=1,3,0)+IF(JF!$L41=2,2,0)+IF(JF!$L41=3,1,0) -> 3
A42: 72 | B42: Mendes | C42: Diana | D42: LTL | E42: f | F42: CAD_AFF | G42: 2 | H42: 16.4 | I42: 16.2 | J42: 16.4 | K42: =IF(SUM(JF!$H42:$J42)=0,"",SUM(JF!$H42:$J42)) -> 49 | L42: 3 | M42: =JF!$F42 -> CAD_AFF | N42: =IF(JF!$L42=1,3,0)+IF(JF!$L42=2,2,0)+IF(JF!$L42=3,1,0) -> 1
A43: 53 | B43: Muller | C43: Lea | D43: LTL | E43: f | F43: CAD_AFF | G43: 2 | H43: 16.5 | I43: 16.4 | J43: 16.4 | K43: =IF(SUM(JF!$H43:$J43)=0,"",SUM(JF!$H43:$J43)) -> 49.3 | L43: 1 | M43: =JF!$F43 -> CAD_AFF | N43: =IF(JF!$L43=1,3,0)+IF(JF!$L43=2,2,0)+IF(JF!$L43=3,1,0) -> 3
A44: 9 | B44: Ferreira | C44: Lisa | D44: LTL | E44: f | F44: MIN_AFF | G44: 2 | H44: 16.6 | I44: 16 | J44: 16.5 | K44: =IF(SUM(JF!$H44:$J44)=0,"",SUM(JF!$H44:$J44)) -> 49.1 | L44: 3 | M44: =JF!$F44 -> MIN_AFF | N44: =IF(JF!$L44=1,3,0)+IF(JF!$L44=2,2,0)+IF(JF!$L44=3,1,0) -> 1
A45: 4 | B45: Schmit | C45: Linn | D45: LML | E45: f | F45: CAD_AFF | G45: 2 | H45: 13.9 | I45: 14.2 | J45: 15.7 | K45: =IF(SUM(JF!$H45:$J45)=0,"",SUM(JF!$H45:$J45)) -> 43.8 | L45: 8 | M45: =JF!$F45 -> CAD_AFF | N45: =IF(JF!$L45=1,3,0)+IF(JF!$L45=2,2,0)+IF(JF!$L45=3,1,0) -> 0
A46: 6 | B46: Abbruzzese | C46: Gloria | D46: LML | E46: f | F46: CAD_AFF | G46: 2 | H46: 10.8 | I46: 14 | J46: 15.5 | K46: =IF(SUM(JF!$H46:$J46)=0,"",SUM(JF!$H46:$J46)) -> 40.3 | L46: 11 | M46: =JF!$F46 -> CAD_AFF | N46: =IF(JF!$L46=1,3,0)+IF(JF!$L46=2,2,0)+IF(JF!$L46=3,1,0) -> 0
A47: 56 | B47: Poiré | C47: Noémie | D47: LTMAL | E47: f | F47: SEN_NA | G47: 2 | I47: 14.5 | J47: 15.9 | K47: =IF(SUM(JF!$H47:$J47)=0,"",SUM(JF!$H47:$J47)) -> 30.4 | L47: 1 | M47: =JF!$F47 -> SEN_NA | N47: =IF(JF!$L47=1,3,0)+IF(JF!$L47=2,2,0)+IF(JF!$L47=3,1,0) -> 3
A48: 76 | B48: Nickels | C48: Leny | D48: LN | E48: f | F48: CAD_AFF | G48: 2 | H48: 15.8 | I48: 15.8 | J48: 15.9 | K48: =IF(SUM(JF!$H48:$J48)=0,"",SUM(JF!$H48:$J48)) -> 47.5 | L48: 6 | M48: =JF!$F48 -> CAD_AFF | N48: =IF(JF!$L48=1,3,0)+IF(JF!$L48=2,2,0)+IF(JF!$L48=3,1,0) -> 0
A49: 55 | B49: Remy | C49: Anna | D49: LN | E49: f | F49: MIN_AFF | G49: 2 | H49: 8.55 | I49: 13.2 | J49: 12.5 | K49: =IF(SUM(JF!$H49:$J49)=0,"",SUM(JF!$H49:$J49)) -> 34.25 | L49: 11 | M49: =JF!$F49 -> MIN_AFF | N49: =IF(JF!$L49=1,3,0)+IF(JF!$L49=2,2,0)+IF(JF!$L49=3,1,0) -> 0
A50: 22 | B50: Desquiotz | C50: Hannah | D50: LAML | E50: f | F50: MIN_AFF | G50: 3 | H50: 15.25 | I50: 15.4 | J50: 15.6 | K50: =IF(SUM(JF!$H50:$J50)=0,"",SUM(JF!$H50:$J50)) -> 46.25 | L50: 5 | M50: =JF!$F50 -> MIN_AFF | N50: =IF(JF!$L50=1,3,0)+IF(JF!$L50=2,2,0)+IF(JF!$L50=3,1,0) -> 0
A51: 69 | B51: Emina | C51: Antonia | D51: LAML | E51: f | F51: MIN_AFF | G51: 3 | H51: 12 | I51: 13.8 | K51: =IF(SUM(JF!$H51:$J51)=0,"",SUM(JF!$H51:$J51)) -> 25.8 | L51: 20 | M51: =JF!$F51 -> MIN_AFF | N51: =IF(JF!$L51=1,3,0)+IF(JF!$L51=2,2,0)+IF(JF!$L51=3,1,0) -> 0
A52: 33 | B52: Montana | C52: Julia | D52: LAML | E52: f | F52: MIN_AFF | G52: 3 | H52: 12.35 | I52: 13 | J52: 13 | K52: =IF(SUM(JF!$H52:$J52)=0,"",SUM(JF!$H52:$J52)) -> 38.35 | L52: 10 | M52: =JF!$F52 -> MIN_AFF | N52: =IF(JF!$L52=1,3,0)+IF(JF!$L52=2,2,0)+IF(JF!$L52=3,1,0) -> 0
A53: 17 | B53: Zastawnik | C53: Eva | D53: LAML | E53: f | F53: MIN_AFF | G53: 3 | H53: 12.25 | I53: 12.5 | K53: =IF(SUM(JF!$H53:$J53)=0,"",SUM(JF!$H53:$J53)) -> 24.75 | L53: 21 | M53: =JF!$F53 -> MIN_AFF | N53: =IF(JF!$L53=1,3,0)+IF(JF!$L53=2,2,0)+IF(JF!$L53=3,1,0) -> 0
A54: 25 | B54: Betry | C54: Emma | D54: LAML | E54: f | F54: CAD_AFF | G54: 3 | H54: 14.2 | I54: 14.6 | J54: 15.6 | K54: =IF(SUM(JF!$H54:$J54)=0,"",SUM(JF!$H54:$J54)) -> 44.4 | L54: 7 | M54: =JF!$F54 -> CAD_AFF | N54: =IF(JF!$L54=1,3,0)+IF(JF!$L54=2,2,0)+IF(JF!$L54=3,1,0) -> 0
A55: 31 | B55: Pasqualoni | C55: Nora | D55: LAML | E55: f | F55: MIN_AFF | G55: 3 | H55: 11.35 | I55: 11.9 | K55: =IF(SUM(JF!$H55:$J55)=0,"",SUM(JF!$H55:$J55)) -> 23.25 | L55: 22 | M55: =JF!$F55 -> MIN_AFF | N55: =IF(JF!$L55=1,3,0)+IF(JF!$L55=2,2,0)+IF(JF!$L55=3,1,0) -> 0
A56: 74 | B56: Scholtus | C56: Loredana | D56: ALR | E56: f | F56: CAD_AFF | G56: 3 | H56: 10.7 | I56: 13.6 | J56: 15.45 | K56: =IF(SUM(JF!$H56:$J56)=0,"",SUM(JF!$H56:$J56)) -> 39.75 | L56: 13 | M56: =JF!$F56 -> CAD_AFF | N56: =IF(JF!$L56=1,3,0)+IF(JF!$L56=2,2,0)+IF(JF!$L56=3,1,0) -> 0
A57: 68 | B57: Lux | C57: Ina | D57: ALR | E57: f | F57: MIN_AFF | G57: 3 | H57: 14.1 | I57: 15.3 | J57: 16 | K57: =IF(SUM(JF!$H57:$J57)=0,"",SUM(JF!$H57:$J57)) -> 45.4 | L57: 6 | M57: =JF!$F57 -> MIN_AFF | N57: =IF(JF!$L57=1,3,0)+IF(JF!$L57=2,2,0)+IF(JF!$L57=3,1,0) -> 0
A58: 7 | B58: Lopes | C58: Ana | D58: ALR | E58: f | F58: MIN_NA | G58: 3 | I58: 14.3 | J58: 14.3 | K58: =IF(SUM(JF!$H58:$J58)=0,"",SUM(JF!$H58:$J58)) -> 28.6 | L58: 1 | M58: =JF!$F58 -> MIN_NA | N58: =IF(JF!$L58=1,3,0)+IF(JF!$L58=2,2,0)+IF(JF!$L58=3,1,0) -> 3
A59: 8 | B59: Kaiser | C59: Jyl | D59: ALR | E59: f | F59: CAD_NA | G59: 3 | I59: 14.7 | J59: 15.7 | K59: =IF(SUM(JF!$H59:$J59)=0,"",SUM(JF!$H59:$J59)) -> 30.4 | L59: 1 | M59: =JF!$F59 -> CAD_NA | N59: =IF(JF!$L59=1,3,0)+IF(JF!$L59=2,2,0)+IF(JF!$L59=3,1,0) -> 3
A60: 75 | B60: Krack | C60: Célina | D60: ALR | E60: f | F60: MIN_AFF | G60: 3 | H60: 12.3 | I60: 13.2 | J60: 15 | K60: =IF(SUM(JF!$H60:$J60)=0,"",SUM(JF!$H60:$J60)) -> 40.5 | L60: 9 | M60: =JF!$F60 -> MIN_AFF | N60: =IF(JF!$L60=1,3,0)+IF(JF!$L60=2,2,0)+IF(JF!$L60=3,1,0) -> 0
A61: 14 | B61: De Vos | C61: Laetitia | D61: ALR | E61: f | F61: MIN_NA | G61: 3 | I61: 13 | J61: 13.9 | K61: =IF(SUM(JF!$H61:$J61)=0,"",SUM(JF!$H61:$J61)) -> 26.9 | L61: 2 | M61: =JF!$F61 -> MIN_NA | N61: =IF(JF!$L61=1,3,0)+IF(JF!$L61=2,2,0)+IF(JF!$L61=3,1,0) -> 2
A62: 23 | B62: Krakowiak | C62: Emilia | D62: ALR | E62: f | F62: JUN_NA | G62: 3 | I62: 13.8 | J62: 13.6 | K62: =IF(SUM(JF!$H62:$J62)=0,"",SUM(JF!$H62:$J62)) -> 27.4 | L62: 1 | M62: =JF!$F62 -> JUN_NA | N62: =IF(JF!$L62=1,3,0)+IF(JF!$L62=2,2,0)+IF(JF!$L62=3,1,0) -> 3
B63: Jedrisiak | C63: Jo | D63: ALR | E63: f | F63: CAD_NA | G63: 3 | I63: 12.5 | J63: 13.35 | K63: =IF(SUM(JF!$H63:$J63)=0,"",SUM(JF!$H63:$J63)) -> 25.85 | L63: 4 | M63: =JF!$F63 -> CAD_NA | N63: =IF(JF!$L63=1,3,0)+IF(JF!$L63=2,2,0)+IF(JF!$L63=3,1,0) -> 0
B64: Maton | C64: Phoebe | D64: LGL | E64: f | F64: CAD_NA | G64: 3 | I64: 13.6 | J64: 11.4 | K64: =IF(SUM(JF!$H64:$J64)=0,"",SUM(JF!$H64:$J64)) -> 25 | L64: 7 | M64: =JF!$F64 -> CAD_NA | N64: =IF(JF!$L64=1,3,0)+IF(JF!$L64=2,2,0)+IF(JF!$L64=3,1,0) -> 0
B65: Georgen | C65: Lili | D65: LGL | E65: f | F65: CAD_AFF | G65: 3 | H65: 14 | I65: 15.7 | J65: 15.8 | K65: =IF(SUM(JF!$H65:$J65)=0,"",SUM(JF!$H65:$J65)) -> 45.5 | L65: 7 | M65: =JF!$F65 -> CAD_AFF | N65: =IF(JF!$L65=1,3,0)+IF(JF!$L65=2,2,0)+IF(JF!$L65=3,1,0) -> 0
B66: Ries | C66: Louise | D66: LGL | E66: f | F66: MIN_NA | G66: 3 | I66: 12.7 | J66: 11.1 | K66: =IF(SUM(JF!$H66:$J66)=0,"",SUM(JF!$H66:$J66)) -> 23.8 | L66: 3 | M66: =JF!$F66 -> MIN_NA | N66: =IF(JF!$L66=1,3,0)+IF(JF!$L66=2,2,0)+IF(JF!$L66=3,1,0) -> 1
B67: Hobscheid | C67: Lily | D67: LGL | E67: f | F67: MIN_AFF | G67: 3 | H67: 12.75 | I67: 12.7 | J67: 14.1 | K67: =IF(SUM(JF!$H67:$J67)=0,"",SUM(JF!$H67:$J67)) -> 39.55 | L67: 10 | M67: =JF!$F67 -> MIN_AFF | N67: =IF(JF!$L67=1,3,0)+IF(JF!$L67=2,2,0)+IF(JF!$L67=3,1,0) -> 0
B68: Clemen | C68: Laura | D68: LGL | E68: f | F68: MIN_AFF | G68: 3 | H68: 14.35 | I68: 14.2 | J68: 16 | K68: =IF(SUM(JF!$H68:$J68)=0,"",SUM(JF!$H68:$J68)) -> 44.55 | L68: =IF(K68="","",1+SUMPRODUCT(($F$4:$F$62=F68)*($K$4:$K$62>K68))) -> 7 | M68: =JF!$F68 -> MIN_AFF | N68: =IF(JF!$L68=1,3,0)+IF(JF!$L68=2,2,0)+IF(JF!$L68=3,1,0) -> 0
B69: Favre Hoffeld | C69: Charlotte | D69: LGL | E69: f | F69: MIN_AFF | G69: 3 | H69: 13.1 | I69: 13 | J69: 13.65 | K69: =IF(SUM(JF!$H69:$J69)=0,"",SUM(JF!$H69:$J69)) -> 39.75 | L69: 10 | M69: =JF!$F69 -> MIN_AFF | N69: =IF(JF!$L69=1,3,0)+IF(JF!$L69=2,2,0)+IF(JF!$L69=3,1,0) -> 0
B70: Favre Hoffeld | C70: Julie | D70: LGL | E70: f | F70: MIN_AFF | G70: 3 | H70: 12.35 | I70: 12.4 | J70: 13.5 | K70: =IF(SUM(JF!$H70:$J70)=0,"",SUM(JF!$H70:$J70)) -> 38.25 | L70: 11 | M70: =JF!$F70 -> MIN_AFF | N70: =IF(JF!$L70=1,3,0)+IF(JF!$L70=2,2,0)+IF(JF!$L70=3,1,0) -> 0
B71: Peyer | C71: Marie | D71: LGL | E71: f | F71: MIN_AFF | G71: 3 | H71: 13.95 | I71: 13.2 | J71: 15.8 | K71: =IF(SUM(JF!$H71:$J71)=0,"",SUM(JF!$H71:$J71)) -> 42.95 | L71: 8 | M71: =JF!$F71 -> MIN_AFF | N71: =IF(JF!$L71=1,3,0)+IF(JF!$L71=2,2,0)+IF(JF!$L71=3,1,0) -> 0
B72: Botticelli | C72: Lara | D72: LJBM | E72: f | F72: MIN_AFF | G72: 3 | H72: 14.3 | I72: 14.6 | J72: 16.8 | K72: =IF(SUM(JF!$H72:$J72)=0,"",SUM(JF!$H72:$J72)) -> 45.7 | L72: 6 | M72: =JF!$F72 -> MIN_AFF | N72: =IF(JF!$L72=1,3,0)+IF(JF!$L72=2,2,0)+IF(JF!$L72=3,1,0) -> 0
B73: Cucukovic | C73: Lidija | D73: LJBM | E73: f | F73: CAD_NA | G73: 3 | I73: 15.2 | J73: 13.9 | K73: =IF(SUM(JF!$H73:$J73)=0,"",SUM(JF!$H73:$J73)) -> 29.1 | L73: 3 | M73: =JF!$F73 -> CAD_NA | N73: =IF(JF!$L73=1,3,0)+IF(JF!$L73=2,2,0)+IF(JF!$L73=3,1,0) -> 1
B74: Pastoret | C74: Lisa | D74: SL | E74: f | F74: JUN_AFF | G74: 3 | H74: 16.6 | I74: 16.4 | J74: 16.6 | K74: =IF(SUM(JF!$H74:$J74)=0,"",SUM(JF!$H74:$J74)) -> 49.6 | L74: 1 | M74: =JF!$F74 -> JUN_AFF | N74: =IF(JF!$L74=1,3,0)+IF(JF!$L74=2,2,0)+IF(JF!$L74=3,1,0) -> 3
B75: Pires Ramos | C75: Alexsandra | D75: SL | E75: f | F75: MIN_AFF | G75: 3 | H75: 16.8 | I75: 16 | J75: 16.5 | K75: =IF(SUM(JF!$H75:$J75)=0,"",SUM(JF!$H75:$J75)) -> 49.3 | L75: 3 | M75: =JF!$F75 -> MIN_AFF | N75: =IF(JF!$L75=1,3,0)+IF(JF!$L75=2,2,0)+IF(JF!$L75=3,1,0) -> 1
K76: =IF(SUM(JF!$H76:$J76)=0,"",SUM(JF!$H76:$J76)) -> 
